Cogmind - Beta 13 *** ADVENTURER MODE // 2024.05.05 @ 03:14:44 Player: XorOwl Result: Destroyed by Y-72 Warden with Quantum Rifle Performance ------------- Evolutions (6) 3000 Regions Visited (19) 3800 Robots Destroyed (136) 680 Value Destroyed (7480) 7480 Prototype IDs (13) 260 Alien Tech Used (0) 0 Bonus (6465) 6465 TOTAL SCORE: 21685 Bonus ------- High Alert Combat Kills 536 Follower Combat Kills 1896 Entered Garrisons 1000 Used RIF Installer 3000 Entered DSFs 500 Friendly Fire -467 Cogmind --------- Core Integrity 0/1150 Matter 300/300 Energy 100/100 System Corruption 20% Temperature Cool (9) Movement Core (50) Location -4/Upper Caves Parts ------- > --- POWER (1) -------- (None) > --- PROPULSION (4) --- (None) > --- UTILITY (12) ----- Improved Hacking Suite > --- WEAPON (2) ------- (None) > --- INVENTORY (5) ---- Light Fission Core Advanced Remote Datajack Peak State ------------ > --- POWER ------------ Light Antimatter Reactor > --- PROPULSION ------- Improved Treads Flexi-carbon Leg Improved VSS Leg > --- UTILITY ---------- Advanced Coolant Injector High-capacity Storage Unit Advanced Visual Processing Unit Active Sensor Suite Experimental Targeting Computer Advanced Thermal Defense Suite Improved Hacking Suite Relay Coupler [NC] Relay Coupler [Grunt] Relay Coupler [Behemoth] > --- WEAPON ----------- Plasma Rifle Advanced Remote Datajack > --- INVENTORY -------- Light Nuclear Core Light Fission Core Neutrino Core Light Antimatter Reactor Nuclear Pulse Array Improved Cryofiber Web Point Defense System Relay Coupler [Cutter] Relay Coupler [Brawler] Relay Coupler [Sentry] Relay Coupler [Demolisher] Relay Coupler [Specialist] Relay Coupler [Hunter] Barrage Gun Heavy Battle Rifle Heavy Rocket Launcher Advanced Datajack Remote Datajack Axe [Rating: 108] Favorites ----------- Power Antimatter Reactor Engine Ion Engine Power Core Micro Nuclear Core Reactor Antimatter Reactor Propulsion Armored Treads Treads Armored Treads Leg Aluminum Leg Wheel Wheel Flight Unit Nuclear Pulse Array Utility High-capacity Storage Unit Device Advanced Coolant Injector Storage High-capacity Storage Unit Processor Experimental Targeting Computer Hackware Relay Coupler [NC] Protection Improved Light Armor Plating Weapon Ion Cannon Energy Gun Quantum Rifle Energy Cannon Ion Cannon Ballistic Gun Heavy Assault Rifle Ballistic Cannon Antimatter Cannon Launcher Heavy Rocket Launcher Special Weapon Remote Datajack Slashing Weapon Katana Piercing Weapon Lance Special Melee Weapon Advanced Datajack Build | -11 -10 -9 -8 -8 -8 -8 -7 -7 -7 -7 -7 -7 -6 -6 -5 -5 -4 -4 -4 ------- Run | Yrd Mat Mat Mat Gar Sto Gar Fac Was Fac Gar Fac DSF Fac Gar Fac Gar Fac Upp Upp Slots Evolved 12 | . . 2 2 . . . 2 . . . . . 2 . 2 . 2 . . Power . | . . . . . . . . . . . . . . . . . . . . Propulsion 2 | . . 1 1 . . . . . . . . . . . . . . . . Utility 10 | . . 1 1 . . . 2 . . . . . 2 . 2 . 2 . . Weapon . | . . . . . . . . . . . . . . . . . . . . Parts Attached 253 | 7 1 7 13 35 6 4 9 3 2 12 . 3 10 9 11 27 38 36 20 Power 23 | 1 1 1 2 4 . . . 1 . . . . . 1 . 4 5 1 2 Engine 6 | 1 1 1 1 1 . . . . . . . . . . . 1 . . . Core 9 | . . . 1 3 . . . . . . . . . . . 2 1 1 1 Reactor 8 | . . . . . . . . 1 . . . . . 1 . 1 4 . 1 Propulsion 67 | 2 . 2 7 14 3 2 4 1 2 . . 1 4 . 2 5 8 8 2 Treads 40 | 2 . 2 6 6 . . 4 1 2 . . 1 3 . 2 5 3 3 . Leg 19 | . . . . 8 3 2 . . . . . . . . . . 5 . 1 Wheel 5 | . . . . . . . . . . . . . . . . . . 5 . Hover . | . . . . . . . . . . . . . . . . . . . . Flight 3 | . . . 1 . . . . . . . . . 1 . . . . . 1 Utility 76 | 2 . 2 4 5 2 2 4 . . 4 . 1 3 3 4 10 13 10 7 Device 26 | 1 . . . 3 . . 1 . . . . . . 1 1 3 7 6 3 Storage 5 | 1 . . 1 . . . . . . . . . . . . . 1 1 1 Processor 5 | . . 1 . . . . . . . . . . . . . 1 2 1 . Hackware 29 | . . . 1 . 2 2 3 . . 4 . 1 3 1 . 4 3 2 3 Protection 11 | . . 1 2 2 . . . . . . . . . 1 3 2 . . . Artifact . | . . . . . . . . . . . . . . . . . . . . Weapon 87 | 2 . 2 . 12 1 . 1 1 . 8 . 1 3 5 5 8 12 17 9 Energy Gun 13 | 1 . . . 4 . . . . . . . . . . . . 1 6 1 Energy Cannon 13 | . . . . 3 . . . 1 . 3 . 1 1 1 2 1 . . . Ballistic Gun 25 | 1 . 2 . 5 . . . . . . . . . . 1 2 6 4 4 Ballistic Cannon 4 | . . . . . . . . . . . . . . 2 . 2 . . . Launcher 5 | . . . . . . . . . . . . . . 1 . 2 2 . . Special Weapon 19 | . . . . . 1 . 1 . . 2 . . 2 1 2 1 3 4 2 Impact Weapon . | . . . . . . . . . . . . . . . . . . . . Slashing Weapon 5 | . . . . . . . . . . 3 . . . . . . . 2 . Piercing Weapon 2 | . . . . . . . . . . . . . . . . . . 1 1 Special Melee Weapon 1 | . . . . . . . . . . . . . . . . . . . 1 Unidentified Prototypes 8 | . . 1 1 . . . . . . . . . 1 . . 2 3 . . Parts Lost 98 | . . . 1 19 . . . . . . . . . 2 3 10 19 12 32 Power 9 | . . . . 2 . . . . . . . . . 1 . 1 1 1 3 Propulsion 31 | . . . . 7 . . . . . . . . . . 1 5 8 4 6 Utility 36 | . . . 1 3 . . . . . . . . . 1 2 2 6 6 15 Weapon 22 | . . . . 7 . . . . . . . . . . . 2 4 1 8 Highest Loss Streak 32 | . . . 1 7 . . . . . . . . . 2 2 5 11 5 32 To Critical Strikes 2 | . . . . 1 . . . . . . . . . . . 1 . . . Average Slot Usage (%) 92 | . 100 99 98 93 97 99 91 100 100 98 92 92 94 96 93 94 82 85 77 Engine 1 | . 14 11 3 5 . . . . . . . . . . . . . . . Core 2 | . . . 5 1 9 9 7 . . . . . . . . 2 . 2 3 Reactor 2 | . . . . . . . . 6 7 7 7 7 6 5 5 1 4 2 . Treads 17 | . 28 32 34 15 . . 26 30 30 30 30 30 25 26 22 18 7 6 10 Leg 7 | . . . . 17 34 36 3 . . . . . . . . . 6 3 . Device 8 | . 14 3 . 6 . . 4 . . . . . . 4 11 16 17 17 16 Storage 6 | . 14 11 9 9 9 9 7 7 7 7 7 7 6 6 5 5 5 5 7 Processor 4 | . . 7 9 9 . . . . . . . . . . . 4 7 7 4 Hackware 22 | . . . 8 9 25 26 25 38 38 36 30 30 41 36 24 22 18 24 19 Protection 2 | . . 10 8 2 . . . . . . . . . 1 9 6 1 . . Energy Gun 2 | . 14 . . 7 . . . . . . . . . . . . 2 6 3 Energy Cannon 4 | . . . . 3 9 9 7 13 15 7 7 15 6 5 5 5 1 . . Ballistic Gun 3 | . 14 21 18 5 . . . . . . . . . . 3 2 3 1 2 Special Weapon 2 | . . . . . 8 9 6 1 . 4 7 . 6 1 . . 1 1 . Naked Turns . | . . . . . . . . . . . . . . . . . . . . Heaviest Build 82 | 15 17 25 58 59 59 55 57 68 68 68 65 68 67 76 81 82 76 81 72 Greatest Support 128 | 40 40 60 80 80 50 50 80 80 80 80 80 80 80 80 88 128 128 74 74 Greatest Overweight (x) 20 | . . . . 2 1 1 2 . . . . . 1 . 1 1 20 7 1 Average Overweight (x) . | . . . . . 1 1 . . . . . . . . . . . 1 . Largest Inventory Capacity 20 | 8 8 8 20 20 20 20 20 20 20 20 20 20 20 20 20 20 20 20 20 Average Capacity 19 | 6 8 8 15 20 20 20 20 20 20 20 20 20 20 20 20 20 20 20 17 Most Carried 20 | . 2 6 11 20 20 20 20 19 20 20 20 20 20 20 19 20 20 20 20 Average Carried 16 | . . 3 7 12 19 19 17 18 19 19 20 20 19 18 16 18 19 19 13 Final Capacity 20 | 8 8 8 20 20 20 20 20 20 20 20 20 20 20 20 20 20 20 20 5 Final Carried 20 | . 2 5 11 20 20 20 18 19 20 20 20 20 20 18 19 20 18 20 2 Class Distribution -------------------- 36% | Bothacker-Mutant 32% | Botlord-Mutant 13% | Scavenger-Mutant 6% | Hacker-Mutant 4% | Mutant 3% | Botlord-Skirmisher Dominant Class ---------------- Mutant | -10/Materials Mutant | -9/Materials Hacker-Mutant | -8/Materials Scavenger-Mutant | -8/Garrison Bothacker-Mutant | -8/Storage Bothacker-Mutant | -8/Garrison Bothacker-Mutant | -7/Factory Bothacker-Mutant | -7/Waste Bothacker-Mutant | -7/Factory Bothacker-Mutant | -7/Garrison Bothacker-Mutant | -7/Factory Bothacker-Mutant | -7/DSF Bothacker-Mutant | -6/Factory Bothacker-Mutant | -6/Garrison Bothacker-Mutant | -5/Factory Botlord-Mutant | -5/Garrison Botlord-Mutant | -4/Factory Botlord-Mutant | -4/Upper Caves Botlord-Mutant | -4/Upper Caves Resources | -11 -10 -9 -8 -8 -8 -8 -7 -7 -7 -7 -7 -7 -6 -6 -5 -5 -4 -4 -4 ----------- Run | Yrd Mat Mat Mat Gar Sto Gar Fac Was Fac Gar Fac DSF Fac Gar Fac Gar Fac Upp Upp Matter Collected 4893 | 276 . 232 471 449 95 189 174 45 20 155 . 30 125 289 157 562 934 607 83 Remotely 152 | . . . . . . . . . . . . . . . . . . 152 . Salvage Created 7107 | 111 . 248 822 1225 . . 98 326 68 . . 160 43 189 300 824 1563 998 132 Parts 310 | 9 . 17 41 50 . . . 8 1 . . 7 6 4 13 43 71 36 4 Haulers Intercepted 4 | . . 1 1 . . . . . . . . 1 . . 1 . . . . Recyclers Shooed 5 | . . 1 . . . . . . . . . . . . 2 . 2 . . Parts Field Recycled . | . . . . . . . . . . . . . . . . . . . . Retrieved Matter . | . . . . . . . . . . . . . . . . . . . . Parts Self-Destructed 38 | . . . . . . . . . . . . . . . . . . 31 7 Prevented . | . . . . . . . . . . . . . . . . . . . . Kills | -11 -10 -9 -8 -8 -8 -8 -7 -7 -7 -7 -7 -7 -6 -6 -5 -5 -4 -4 -4 ------- Run | Yrd Mat Mat Mat Gar Sto Gar Fac Was Fac Gar Fac DSF Fac Gar Fac Gar Fac Upp Upp Combat Hostiles Destroyed 111 | . . 3 11 28 . . 1 . . . . 2 1 6 3 25 19 10 2 Melee 1 | . . . . 1 . . . . . . . . . . . . . . . Guns 63 | . . 3 11 21 . . . . . . . . . . . 3 13 10 2 Cannons 31 | . . . . 4 . . . . . . . 2 1 5 3 13 3 . . AOE 11 | . . . . . . . . . . . . . . 1 . 7 3 . . Classes Destroyed 18 | 2 . 4 1 4 . . . . . . . 1 . 1 1 1 3 . . Worker 2 | . . 1 . . . . . . . . . . . . 1 . . . . Builder 4 | . . . . . . . . . . . . . . . . . 4 . . Tunneler 1 | 1 . . . . . . . . . . . . . . . . . . . Hauler 4 | . . 1 1 . . . . . . . . 1 . . 1 . . . . Recycler 5 | 1 . . 1 . . . . . 1 . . . . . . . 2 . . Mechanic 1 | . . . . . . . . . . . . . . . . . 1 . . Watcher 5 | . . . 3 . . . . . . . . . . . 1 . 1 . . Swarmer 28 | . . . . 6 . . . 1 . . . . . . 1 16 . 4 . Grunt 52 | . . 1 8 15 . . 1 . . . . 1 . 5 . . 15 5 1 Brawler 3 | . . . . 1 . . . . . . . . . . . . . 1 1 Duelist 3 | . . . . 2 . . 1 . . . . . . . . . . . . Sentry 10 | . . 2 3 1 . . . . . . . . . . 1 2 1 . . Specialist 1 | . . . . . . . . . . . . 1 . . . . . . . Hunter 2 | . . . . . . . . . . . . . . . 1 1 . . . Programmer 9 | . . . . 3 . . . . . . . . 1 . . 3 2 . . Heavy 1 | . . . . . . . . . . . . . . . . . 1 . . Behemoth 3 | . . . . . . . . . . . . . . 1 . 1 . 1 . Executioner 2 | . . . . . . . . . . . . . . . . 2 . . . Packrat 1 | . . . . . . . . . . . . . . . . . . 1 . Best Kill Streak 10 | 2 . 2 6 4 . . 1 . 1 . . 2 1 3 2 10 6 4 1 Combat Bots Only 10 | . . 1 5 4 . . 1 . . . . 1 1 3 2 10 4 4 1 Max Kills in Single Turn 5 | 1 . 2 2 2 . . 1 1 1 . . 1 1 1 1 5 2 1 1 Gunslinging 1 | . . . 1 1 . . . . . . . . . . . . . . . Exploded 5 | . . . . . . . . . . . . . . 1 . 5 1 . . Melee 1 | . . . . 1 . . . . . . . . . . . . . . . Uniques/NPCs Destroyed . | . . . . . . . . . . . . . . . . . . . . Combat | -11 -10 -9 -8 -8 -8 -8 -7 -7 -7 -7 -7 -7 -6 -6 -5 -5 -4 -4 -4 -------- Run | Yrd Mat Mat Mat Gar Sto Gar Fac Was Fac Gar Fac DSF Fac Gar Fac Gar Fac Upp Upp Hostile Shots Fired 1356 | . . 31 130 255 4 3 14 . . 6 . 13 4 113 41 197 242 118 185 Missed 354 | . . 10 50 61 1 1 5 . . 1 . 5 1 26 12 54 61 24 42 Damage Taken 14098 | . . 234 934 2185 30 63 107 . . 68 . 129 115 1214 427 2178 2509 1337 2568 Core 1894 | . . . 63 319 14 . . . . . . . . 67 12 255 235 235 694 Absorbed by Shields 259 | . . . . 46 . . . . . . . . . . . 56 157 . . Redirected to Shielding 14 | . . . . 14 . . . . . . . . . . . . . . . Ignored by Resistances 4356 | . . 63 272 642 9 18 31 . . 20 . 39 34 339 122 623 902 516 726 Regen/Repaired (Parts) 26 | . . . . . . . 26 . . . . . . . . . . . . Core Remaining (%) 84 | 100 100 100 . . . 28 . . . . . 100 . 92 . 73 . . . Volleys Fired 553 | 2 . 25 58 106 6 24 17 12 1 18 . 9 16 28 24 63 88 46 10 Largest 2 | 2 . 2 2 2 1 1 1 2 2 2 . 2 1 2 2 2 2 2 2 Hottest 188 | 70 . 46 46 130 60 60 60 120 120 120 . 120 85 125 170 125 123 188 124 Shots Fired 952 | 4 . 50 116 200 7 24 17 21 2 20 . 18 16 45 38 115 164 81 14 Gun 576 | 4 . 50 116 158 . . . . . . . . . . 9 30 126 70 13 Cannon 274 | . . . . 42 3 1 2 18 2 13 . 18 7 40 25 79 24 . . Launcher 14 | . . . . . . . . . . . . . . 1 . 2 11 . . Special 88 | . . . . . 4 23 15 3 . 7 . . 9 4 4 4 3 11 1 Kinetic 461 | 2 . 50 116 64 . . . . . . . . . 24 9 54 109 26 7 Thermal 389 | 2 . . . 136 3 1 2 18 2 13 . 18 7 16 25 55 41 44 6 Explosive 14 | . . . . . . . . . . . . . . 1 . 2 11 . . Electromagnetic . | . . . . . . . . . . . . . . . . . . . . Robot Hit Streak 40 | 2 . 35 26 28 20 24 3 14 3 9 . 15 14 14 20 37 40 16 24 Robot Miss Streak 3 | . . 2 3 2 . 1 2 1 . 1 . 1 2 1 1 3 1 2 . Penetration Max 2 | . . . . . . . . . . . . . . . . . 2 . . Secondary Targets 23 | . . . 4 12 . . . . . . . . . . . . 2 4 1 Max Gunslinging Chain 1 | . . . 1 1 . . . . . . . . . . . . 1 1 1 Shots Hit Robots 775 | 2 . 38 96 146 4 22 11 18 2 12 . 16 13 37 33 91 139 77 18 Core Hits 293 | 2 . 8 34 57 . . 1 4 . 1 . 7 1 13 12 42 74 28 9 Critical Kills 3 | . . . . . . . 1 . 1 . . . . . . 1 . . . Critical Parts Destroyed 2 | . . 1 . . . . . . . . . . . . . . 1 . . Critical Strikes 16 | . . 2 . 6 . . 1 . 1 . . . . 2 . 3 1 . . Burn 6 | . . . . 6 . . . . . . . . . . . . . . . Meltdown 3 | . . . . . . . 1 . 1 . . . . . . 1 . . . Destroy 3 | . . 2 . . . . . . . . . . . . . . 1 . . Blast 4 | . . . . . . . . . . . . . . 2 . 2 . . . Melee Attacks 20 | . . . . . . . . . . 3 . . . . . . . 13 4 Impact . | . . . . . . . . . . . . . . . . . . . . Slashing 16 | . . . . . . . . . . 3 . . . . . . . 13 . Piercing 4 | . . . . . . . . . . . . . . . . . . . 4 Sneak Attacks . | . . . . . . . . . . . . . . . . . . . . Combat Hostiles . | . . . . . . . . . . . . . . . . . . . . Follow-up Attacks . | . . . . . . . . . . . . . . . . . . . . Damage Inflicted 18702 | 28 . 558 1465 2316 9 . 46 371 46 135 . 371 138 1330 847 3474 4730 2329 509 Guns 8859 | 28 . 558 1450 1675 . . . . . . . . . . 115 557 2762 1407 307 Cannons 6468 | . . . . 637 . . 46 371 46 135 . 371 138 1141 732 2184 667 . . Explosions 2223 | . . . . . . . . . . . . . . 189 . 733 1301 . . Melee 1057 | . . . . . . . . . . . . . . . . . . 922 135 Ramming 95 | . . . 15 4 9 . . . . . . . . . . . . . 67 Kinetic 7611 | 28 . 558 1450 519 . . . . . . . . . 693 115 1149 2497 468 134 Thermal 7716 | . . . . 1793 . . 46 371 46 135 . 371 138 448 732 1592 932 939 173 Explosive 2223 | . . . . . . . . . . . . . . 189 . 733 1301 . . Electromagnetic . | . . . . . . . . . . . . . . . . . . . . Impact . | . . . . . . . . . . . . . . . . . . . . Slashing 922 | . . . . . . . . . . . . . . . . . . 922 . Piercing 135 | . . . . . . . . . . . . . . . . . . . 135 Highest Corruption 20 | . . . . 3 3 3 . . . . . . . . . 12 1 1 20 Average Corruption 3 | . . . . 2 3 3 . . . . . . . . . 7 1 1 17 Corruption Purged 8 | . . . . . . . . . . . . . . . . 7 . 1 . Corruption Blocked . | . . . . . . . . . . . . . . . . . . . . Effects 45 | . . . . . 10 12 . . . . . . . . . 9 2 6 6 Message Errors 11 | . . . . . 2 2 . . . . . . . . . 1 1 2 3 Matter Fused 12 | . . . . . 2 5 . . . . . . . . . 3 . 2 . Heat Flow Errors 4 | . . . . . 1 . . . . . . . . . . 1 1 . 1 Energy Discharges 4 | . . . . . . 2 . . . . . . . . . 1 . . 1 Parts Rejected 1 | . . . . . 1 . . . . . . . . . . . . . . Parts Fused 1 | . . . . . . 1 . . . . . . . . . . . . . Data Loss (minor) 7 | . . . . . 2 2 . . . . . . . . . 1 . 2 . Data Loss (major) 1 | . . . . . . . . . . . . . . . . 1 . . . Misfires 1 | . . . . . 1 . . . . . . . . . . . . . . Alerts 2 | . . . . . 1 . . . . . . . . . . 1 . . . Misdirections 1 | . . . . . . . . . . . . . . . . . . . 1 Overload Shots . | . . . . . . . . . . . . . . . . . . . . Overflow Damage 683 | . . . . 37 . . . . . 15 . . . 12 9 102 24 484 . Projectiles 160 | . . . . 37 . . . . . 15 . . . 12 9 63 24 . . Explosions 39 | . . . . . . . . . . . . . . . . 39 . . . Melee 484 | . . . . . . . . . . . . . . . . . . 484 . Knockbacks 7 | . . . . . . . . . . . . . . 4 . 3 . . . Impact . | . . . . . . . . . . . . . . . . . . . . Kinetic 7 | . . . . . . . . . . . . . . 4 . 3 . . . Secondary . | . . . . . . . . . . . . . . . . . . . . Self-Inflicted Damage 27 | . . . . . . . . . . . . . . . . . . . 27 Shots . | . . . . . . . . . . . . . . . . . . . . Rammed 22 | . . . 1 2 . . . . . . . . . . . . . . 19 Targets Rammed 25 | . . . 1 3 2 . . . . . . . . . . . . . 19 Kicked 2 | . . . . . 2 . . . . . . . . . . . . . . Crushed 1 | . . . . 1 . . . . . . . . . . . . . . . Highest Temperature 572 | 18 . 4 150 572 223 12 12 225 45 90 . 4 84 571 277 262 158 196 80 Average Temperature 107 | 10 . 3 46 124 73 6 7 91 28 23 . 4 25 274 158 135 55 75 40 Received Heat Transfer 4733 | . . 102 612 1007 9 72 12 . . 9 . 15 27 489 27 188 950 485 729 Effects 15 | . . . . 8 . . . . . . . . . 4 2 1 . . . Shutdowns 1 | . . . . 1 . . . . . . . . . . . . . . . Energy Bleed 4 | . . . . 3 . . . . . . . . . 1 . . . . . Interference 5 | . . . . . . . . . . . . . . 2 2 1 . . . Matter Decay 2 | . . . . 1 . . . . . . . . . 1 . . . . . Damage (major) 3 | . . . . 3 . . . . . . . . . . . . . . . Siege Activations . | . . . . . . . . . . . . . . . . . . . . Robots Corrupted . | . . . . . . . . . . . . . . . . . . . . Combat Hostiles . | . . . . . . . . . . . . . . . . . . . . Parts Fried . | . . . . . . . . . . . . . . . . . . . . Impact Corruptions . | . . . . . . . . . . . . . . . . . . . . Robots Melted 5 | . . . . 2 . . 1 . 1 . . . . . . 1 . . . Combat Hostiles 4 | . . . . 2 . . 1 . . . . . . . . 1 . . . Parts Melted 25 | . . . . 12 . . 2 1 . . . . . . 1 3 1 5 . Heat Transferred 11572 | . . . . 3818 . . 74 592 74 222 . 592 185 518 888 1776 1377 1234 222 Parts Sabotaged . | . . . . . . . . . . . . . . . . . . . . Parts Stolen . | . . . . . . . . . . . . . . . . . . . . Parts Stripped . | . . . . . . . . . . . . . . . . . . . . Power Chain Reactions . | . . . . . . . . . . . . . . . . . . . . Alert | -11 -10 -9 -8 -8 -8 -8 -7 -7 -7 -7 -7 -7 -6 -6 -5 -5 -4 -4 -4 ------- Run | Yrd Mat Mat Mat Gar Sto Gar Fac Was Fac Gar Fac DSF Fac Gar Fac Gar Fac Upp Upp Peak Influence 961 | 10 28 124 238 961 531 374 172 . 5 244 110 195 88 218 188 898 572 . . Initial 408 | . 5 9 . 134 403 127 169 . . 2 110 67 88 . 98 19 408 . . Average 258 | 4 14 67 93 499 403 255 112 . . 139 110 128 43 153 84 507 393 . . Maximum Alert Level 3 | . . . 1 3 2 1 . . . 1 . . . 1 . 3 2 . . Low Security (%) 52 | 100 100 100 93 14 . 8 100 100 100 85 100 100 100 45 100 23 . . . Level 1 21 | . . . 6 23 46 91 . . . 14 . . . 54 . 15 46 . . Level 2 19 | . . . . 40 53 . . . . . . . . . . 36 53 . . Level 3 6 | . . . . 21 . . . . . . . . . . . 24 . . . Level 4 . | . . . . . . . . . . . . . . . . . . . . Level 5 . | . . . . . . . . . . . . . . . . . . . . High Security . | . . . . . . . . . . . . . . . . . . . . Max Security . | . . . . . . . . . . . . . . . . . . . . Squads Dispatched 14 | . . . 3 . . . . . . . . 1 2 . . . 7 . 1 Investigation 2 | . . . 1 . . . . . . . . . . . . . 1 . . Extermination 4 | . . . . . . . . . . . . . 2 . . . 2 . . Reinforcement 4 | . . . . . . . . . . . . 1 . . . . 3 . . Assault 1 | . . . . . . . . . . . . . . . . . . . 1 Garrison 3 | . . . 2 . . . . . . . . . . . . . 1 . . Intercept . | . . . . . . . . . . . . . . . . . . . . Searches Triggered . | . . . . . . . . . . . . . . . . . . . . Construction Impeded 1 | . . . . . . . . . . . . . . . . . 1 . . Haulers Reinforced 1 | . . . . . . . . . . . . . . . . . 1 . . Active Scanning Responses . | . . . . . . . . . . . . . . . . . . . . Cargo Convoy Interrupts 1 | . . . . . . . . . . . . . . . . . 1 . . Stealth | -11 -10 -9 -8 -8 -8 -8 -7 -7 -7 -7 -7 -7 -6 -6 -5 -5 -4 -4 -4 --------- Run | Yrd Mat Mat Mat Gar Sto Gar Fac Was Fac Gar Fac DSF Fac Gar Fac Gar Fac Upp Upp Distress Signals 4 | . . 1 1 . . . . . . . . . . . . . 2 . . Communications Jammed . | . . . . . . . . . . . . . . . . . . . . Distress Signals . | . . . . . . . . . . . . . . . . . . . . Times Spotted 244 | . . 3 17 33 5 18 11 1 . 8 . 5 5 13 9 43 39 22 12 Peak Tracking Total 9 | . . 1 5 5 5 8 5 1 . 4 . 2 2 9 6 8 9 9 6 Tactical Retreats 13 | . . . . 5 1 . 1 . . . . . . 2 1 1 . 2 . Traps | -11 -10 -9 -8 -8 -8 -8 -7 -7 -7 -7 -7 -7 -6 -6 -5 -5 -4 -4 -4 ------- Run | Yrd Mat Mat Mat Gar Sto Gar Fac Was Fac Gar Fac DSF Fac Gar Fac Gar Fac Upp Upp Traps Triggered 11 | . . . . 7 . 1 1 . . 1 . . 1 . . . . . . Indirectly . | . . . . . . . . . . . . . . . . . . . . Trap Hack Attempts . | . . . . . . . . . . . . . . . . . . . . Triggered . | . . . . . . . . . . . . . . . . . . . . Disarmed . | . . . . . . . . . . . . . . . . . . . . Reprogrammed . | . . . . . . . . . . . . . . . . . . . . Reused . | . . . . . . . . . . . . . . . . . . . . Traps Extracted . | . . . . . . . . . . . . . . . . . . . . Installed . | . . . . . . . . . . . . . . . . . . . . Triggered . | . . . . . . . . . . . . . . . . . . . . Machines | -11 -10 -9 -8 -8 -8 -8 -7 -7 -7 -7 -7 -7 -6 -6 -5 -5 -4 -4 -4 ---------- Run | Yrd Mat Mat Mat Gar Sto Gar Fac Was Fac Gar Fac DSF Fac Gar Fac Gar Fac Upp Upp Machines Disabled 14 | . . . . 2 . 1 . . . 2 . . . . . 5 4 . . Max in Single Turn 1 | . . . . 1 . 1 . . . 1 . . . . . 1 1 . . Garrison Relay 8 | . . . . 2 . 1 . . . 2 . . . . . 3 . . . Machines Repaired . | . . . . . . . . . . . . . . . . . . . . Machines Dismantled . | . . . . . . . . . . . . . . . . . . . . Machines Sabotaged . | . . . . . . . . . . . . . . . . . . . . Overloaded Fab Kills . | . . . . . . . . . . . . . . . . . . . . Hacking | -11 -10 -9 -8 -8 -8 -8 -7 -7 -7 -7 -7 -7 -6 -6 -5 -5 -4 -4 -4 --------- Run | Yrd Mat Mat Mat Gar Sto Gar Fac Was Fac Gar Fac DSF Fac Gar Fac Gar Fac Upp Upp Machines Accessed 30 | . 2 1 4 1 5 . 3 . 1 . 1 . 3 . 3 2 3 1 . Terminals 21 | . 2 1 3 1 4 . 2 . . . 1 . 1 . 1 2 3 . . Fabricators 1 | . . . . . . . . . . . . . 1 . . . . . . Repair Stations 1 | . . . . . . . 1 . . . . . . . . . . . . Recycling Units . | . . . . . . . . . . . . . . . . . . . . Scanalyzers 1 | . . . . . . . . . . . . . . . 1 . . . . Garrison Access 5 | . . . 1 . 1 . . . 1 . . . 1 . 1 . . . . Total Hacks 95 | . 9 3 12 3 25 . 8 . 1 . 1 . 9 . 12 3 8 1 . Successful 48 | . 6 2 6 1 11 . 4 . 1 . 1 . 5 . 5 2 3 1 . Failed 47 | . 3 1 6 2 14 . 4 . . . . . 4 . 7 1 5 . . Catastrophic 5 | . . . . . 1 . 1 . . . . . 1 . . . 2 . . Database Lockouts . | . . . . . . . . . . . . . . . . . . . . Manual 67 | . 9 3 11 . 25 . 5 . . . . . 3 . 2 . 9 . . Terminals 75 | . 9 3 11 3 24 . 5 . . . 1 . 6 . 2 3 8 . . Fabricators 2 | . . . . . . . . . . . . . 2 . . . . . . Repair Stations 3 | . . . . . . . 3 . . . . . . . . . . . . Recycling Units . | . . . . . . . . . . . . . . . . . . . . Scanalyzers 9 | . . . . . . . . . . . . . . . 9 . . . . Garrison Access 5 | . . . 1 . 1 . . . 1 . . . 1 . 1 . . . . Terminal Hacks 21 | . 4 1 2 1 5 . 1 . . . 1 . 2 . . 2 1 1 . Record 3 | . . . . . 1 . 1 . . . . . 1 . . . . . . Open Door 2 | . . . . . . . . . . . . . . . . 1 . 1 . Open DSF 1 | . . . . . . . . . . . 1 . . . . . . . . Level Access Points 1 | . 1 . . . . . . . . . . . . . . . . . . Branch Access Points 1 | . 1 . . . . . . . . . . . . . . . . . . Emergency Access Points 2 | . . . . 1 . . . . . . . . . . . 1 . . . Terminal Index 3 | . . . 1 . 1 . . . . . . . . . . . 1 . . Garrison Index 2 | . . . 1 . . . . . . . . . 1 . . . . . . Unreport Threat 2 | . . . . . 2 . . . . . . . . . . . . . . Zone Layout 4 | . 2 1 . . 1 . . . . . . . . . . . . . . Fabricator Hacks 1 | . . . . . . . . . . . . . 1 . . . . . . Network Status 1 | . . . . . . . . . . . . . 1 . . . . . . Repair Station Hacks 2 | . . . . . . . 2 . . . . . . . . . . . . Scan Component 1 | . . . . . . . 1 . . . . . . . . . . . . Repair 1 | . . . . . . . 1 . . . . . . . . . . . . Recycling Unit Hacks . | . . . . . . . . . . . . . . . . . . . . Scanalyzer 4 | . . . . . . . . . . . . . . . 4 . . . . Insert Component 2 | . . . . . . . . . . . . . . . 2 . . . . Analyze 2 | . . . . . . . . . . . . . . . 2 . . . . Garrison Access Hacks 5 | . . . 1 . 1 . . . 1 . . . 1 . 1 . . . . Unlock Access 5 | . . . 1 . 1 . . . 1 . . . 1 . 1 . . . . Unauthorized Hacks 14 | . 2 1 3 . 4 . 1 . . . . . 1 . . . 2 . . Terminals 14 | . 2 1 3 . 4 . 1 . . . . . 1 . . . 2 . . Botnet 14 | . 2 1 3 . 4 . 1 . . . . . 1 . . . 2 . . Fabricators . | . . . . . . . . . . . . . . . . . . . . Repair Stations . | . . . . . . . . . . . . . . . . . . . . Recycling Units . | . . . . . . . . . . . . . . . . . . . . Scanalyzers . | . . . . . . . . . . . . . . . . . . . . Garrison Access . | . . . . . . . . . . . . . . . . . . . . Data Cores Recovered . | . . . . . . . . . . . . . . . . . . . . Used . | . . . . . . . . . . . . . . . . . . . . Hacking Detections 21 | . 2 1 2 1 4 . 3 . 1 . . . . . 3 1 3 . . Full Trace Events 3 | . 1 . 1 . . . . . . . . . . . . . 1 . . Feedback Events . | . . . . . . . . . . . . . . . . . . . . Feedback Blocked . | . . . . . . . . . . . . . . . . . . . . Robot Schematics Acquired . | . . . . . . . . . . . . . . . . . . . . Robots Built . | . . . . . . . . . . . . . . . . . . . . Authchips . | . . . . . . . . . . . . . . . . . . . . Time . | . . . . . . . . . . . . . . . . . . . . Total Robot Build Rating . | . . . . . . . . . . . . . . . . . . . . Part Schematics Acquired 2 | . . . . . . . . . . . . . . . 2 . . . . Parts Built . | . . . . . . . . . . . . . . . . . . . . Authchips . | . . . . . . . . . . . . . . . . . . . . Time . | . . . . . . . . . . . . . . . . . . . . Total Part Build Rating . | . . . . . . . . . . . . . . . . . . . . Parts Repaired 1 | . . . . . . . 1 . . . . . . . . . . . . Time 44 | . . . . . . . 44 . . . . . . . . . . . . Parts Recycled . | . . . . . . . . . . . . . . . . . . . . Recycled Matter . | . . . . . . . . . . . . . . . . . . . . Retrieved Matter . | . . . . . . . . . . . . . . . . . . . . Retrieved Components . | . . . . . . . . . . . . . . . . . . . . Parts Scanalyzed 2 | . . . . . . . . . . . . . . . 2 . . . . Part Schematics Acquired 2 | . . . . . . . . . . . . . . . 2 . . . . Parts Damaged . | . . . . . . . . . . . . . . . . . . . . Bothacking | -11 -10 -9 -8 -8 -8 -8 -7 -7 -7 -7 -7 -7 -6 -6 -5 -5 -4 -4 -4 ------------ Run | Yrd Mat Mat Mat Gar Sto Gar Fac Was Fac Gar Fac DSF Fac Gar Fac Gar Fac Upp Upp Used RIF Installer 6 | . . . . 1 . 1 . . . 1 . . . 1 . 2 . . . Coupler Efficiency 1 | . . . . . . . . . . . . . . . . 1 . . . Hotswap 1 | . . . . . . . . . . 1 . . . . . . . . . Threat Obfuscator 1 | . . . . . . . . . . . . . . . . 1 . . . Structural Interface 1 | . . . . . . . . . . . . . . 1 . . . . . Program Shield 1 | . . . . . . 1 . . . . . . . . . . . . . Robots Hacked 42 | . . . . . 2 4 9 . . 4 . . 5 2 3 4 3 5 1 Non-combat 8 | . . . . . 1 . 4 . . . . . 3 . . . . . . Combat 34 | . . . . . 1 4 5 . . 4 . . 2 2 3 4 3 5 1 Robot Hacks Applied 46 | . . . . . 2 4 10 . . 4 . . 6 3 3 4 3 6 1 no_distress 1 | . . . . . . . 1 . . . . . . . . . . . . find_chute 1 | . . . . . . . . . . . . . 1 . . . . . . deconstruct_machine 1 | . . . . . . . . . . . . . 1 . . . . . . drop_inventory 2 | . . . . . 1 . . . . . . . 1 . . . . . . find_station 1 | . . . . . . . 1 . . . . . . . . . . . . find_shortcuts 1 | . . . . . . . . . . . . . . 1 . . . . . find_garrison 1 | . . . . . . . . . . . . . . . . . 1 . . overload_power 4 | . . . . . . . . . . . . . 1 . . 1 . 1 1 amplify_resonance 1 | . . . . . . . . . . . . . . 1 . . . . . disable_weapons 1 | . . . . . . . . . . . . . . . . . . 1 . reboot_system 1 | . . . . . . . . . . . . . . . . . . 1 . overwrite_iff 1 | . . . . . . . . . . . . . . . . 1 . . . formatsys_low 1 | . . . . . . . 1 . . . . . . . . . . . . formatsys_high 29 | . . . . . 1 4 7 . . 4 . . 2 1 3 2 2 3 . Relay Couplers Released 37 | . . . . 10 . 4 . . . 9 . . . . . 14 . . . Machine Destruction 37 | . . . . 10 . 4 . . . 9 . . . . . 14 . . . Attached 23 | . . . . . 2 2 2 . . 4 . . 1 1 . 4 2 2 3 Fabnet Peak Effective % . | . . . . . . . . . . . . . . . . . . . . Robots Rewired 10 | . . . . . 1 6 . . . . . . 1 . . . . 2 . Allies Hacked . | . . . . . . . . . . . . . . . . . . . . Hacks Repelled . | . . . . . . . . . . . . . . . . . . . . Allies | -11 -10 -9 -8 -8 -8 -8 -7 -7 -7 -7 -7 -7 -6 -6 -5 -5 -4 -4 -4 -------- Run | Yrd Mat Mat Mat Gar Sto Gar Fac Was Fac Gar Fac DSF Fac Gar Fac Gar Fac Upp Upp Total Allies 54 | . . . . . 11 10 8 . . 4 . . 3 1 3 7 2 5 . Largest Group 16 | . . . . . 11 16 10 3 2 3 2 2 4 2 3 5 2 4 1 Highest-Rated Group 242 | . . . . . 189 242 173 56 44 56 48 48 124 62 73 154 165 189 48 Highest-Rated Ally 116 | . . . . . 29 29 32 32 32 32 32 32 34 37 49 62 116 64 48 Total Orders . | . . . . . . . . . . . . . . . . . . . . Ally Attacks 346 | . . . . . 50 101 39 9 . 33 . 10 7 7 13 32 22 21 2 Total Damage 7685 | . . . . . 702 1146 453 261 . 741 . 290 174 668 225 935 1194 869 27 Kills 68 | . . . . . 9 15 2 1 . 9 . 4 2 3 1 8 6 7 1 Allies Corrupted 1 | . . . . . . . . . . . . . . . . . 1 . . Allies Melted 2 | . . . . . . . . . . . . . . 1 . 1 . . . Intel | -11 -10 -9 -8 -8 -8 -8 -7 -7 -7 -7 -7 -7 -6 -6 -5 -5 -4 -4 -4 ------- Run | Yrd Mat Mat Mat Gar Sto Gar Fac Was Fac Gar Fac DSF Fac Gar Fac Gar Fac Upp Upp Robot Analysis Total . | . . . . . . . . . . . . . . . . . . . . Derelict Logs Recovered 1 | . . . . . . . . . . . . . . . . . . 1 . Drone Launches . | . . . . . . . . . . . . . . . . . . . . Drone Recoveries . | . . . . . . . . . . . . . . . . . . . . Exploration | -11 -10 -9 -8 -8 -8 -8 -7 -7 -7 -7 -7 -7 -6 -6 -5 -5 -4 -4 -4 ------------- Run | Yrd Mat Mat Mat Gar Sto Gar Fac Was Fac Gar Fac DSF Fac Gar Fac Gar Fac Upp Upp Turns Passed 13654 | 72 144 438 737 1997 574 725 628 794 152 465 16 159 1000 345 595 1237 1201 2161 214 Spaces Moved 5745 | 38 89 219 331 778 249 269 275 425 83 223 10 72 494 148 259 506 415 761 101 Core 17 | 4 . . . . . . . . . . . . . . . . 2 . 11 Treads 4446 | 34 89 219 331 496 . . 241 425 83 223 10 72 494 148 259 506 186 560 70 Legs 1174 | . . . . 282 249 269 34 . . . . . . . . . 227 113 . Wheels 108 | . . . . . . . . . . . . . . . . . . 88 20 Hover . | . . . . . . . . . . . . . . . . . . . . Flight . | . . . . . . . . . . . . . . . . . . . . Fastest Speed 50 | 50 160 160 160 162 190 190 170 170 170 170 170 170 170 170 167 160 112 95 50 Average Speed 188 | 148 160 160 161 204 190 190 173 170 170 170 170 170 170 170 199 162 201 252 136 Slowest Speed 1050 | 160 160 160 163 320 190 190 330 170 170 170 170 170 250 170 250 246 1050 330 240 Overloaded Moves . | . . . . . . . . . . . . . . . . . . . . Propulsion Burnouts . | . . . . . . . . . . . . . . . . . . . . Robots Hopped . | . . . . . . . . . . . . . . . . . . . . Cave-ins Triggered . | . . . . . . . . . . . . . . . . . . . . Exploration Rate (%) 33 | 4 18 20 39 69 40 44 8 95 3 32 1 77 13 29 7 69 14 79 15 Regions Visited 19 Branch Regions 3 Pre-discovered Areas . | . . . . . . . . . . . . . . . . . . . . Known Exits Taken 7 | . 1 . 1 . 1 . . . 1 . 1 . 1 . 1 . . . . Unknown Exits Taken 4 | 1 . 1 . . . . . . . . . . . . . . 1 1 . Scrap Searched 3 | . . . . . . . . . . . . . . . . . . 3 . Spaces Dug 30 | . . . . . . . . . . . . . . . . . 25 5 . Terrain Destroyed 143 | . . . . . . . . . . . . . 1 7 1 13 110 11 . Melee . | . . . . . . . . . . . . . . . . . . . . Projectile 43 | . . . . . . . . . . . . . 1 3 1 5 22 11 . AOE 100 | . . . . . . . . . . . . . . 4 . 8 88 . . Terrain Rammed . | . . . . . . . . . . . . . . . . . . . . Walls Destroyed . | . . . . . . . . . . . . . . . . . . . . Machines Disabled . | . . . . . . . . . . . . . . . . . . . . Actions | -11 -10 -9 -8 -8 -8 -8 -7 -7 -7 -7 -7 -7 -6 -6 -5 -5 -4 -4 -4 --------- Run | Yrd Mat Mat Mat Gar Sto Gar Fac Was Fac Gar Fac DSF Fac Gar Fac Gar Fac Upp Upp Total 7584 | 46 90 256 415 983 342 472 420 478 93 284 9 91 641 195 296 805 613 900 155 Wait 810 | . . . . 18 75 164 102 27 . 25 . 6 107 10 . 188 58 30 . Move 5730 | 37 88 218 330 777 249 268 275 424 83 222 9 71 494 147 258 505 414 760 101 Hop . | . . . . . . . . . . . . . . . . . . . . Pick Up 83 | . 1 3 5 23 2 3 7 3 3 2 . . 6 1 2 11 8 3 . Fast Attach 74 | 7 . 2 5 9 1 . 5 . . . . 1 4 1 3 7 14 15 . Attach 69 | . . 2 1 15 . 1 2 . . . . . 2 2 2 6 12 7 17 Detach 9 | . . . . 2 . . . . . . . . . . . . 1 6 . Swap 110 | . 1 3 7 11 5 3 2 3 2 12 . 2 4 6 6 14 12 14 3 Drop 80 | . . 3 8 9 2 4 10 4 4 2 . 2 8 . . 11 6 6 1 Fire 553 | 2 . 25 58 106 6 24 17 12 1 18 . 9 16 28 24 63 88 46 10 Melee 20 | . . . . . . . . . . 3 . . . . . . . 13 4 Ram 18 | . . . . . . . . . . . . . . . . . . . 18 Kick 2 | . . . . . 2 . . . . . . . . . . . . . . Crush 5 | . . . 1 3 . . . . . . . . . . . . . . 1 Escape Stasis 15 | . . . . 10 . 5 . . . . . . . . . . . . . Rewire 6 | . . . . . . . . 5 . . . . . . 1 . . . . Trap . | . . . . . . . . . . . . . . . . . . . . Miscellaneous . | . . . . . . . . . . . . . . . . . . . . Route ------- -11/Scrapyard -10/Materials (discovered 5 exits: *Mat x3 / Min x2) -9/Materials -8/Materials (discovered 4 exits: *Fac / *Sto x2 / Gar) -8/Garrison (discovered 3 exits: *Sto x3) -8/Storage (discovered 2 exits: *Fac / Gar) -8/Garrison -7/Factory -7/Waste -7/Factory -7/Garrison -7/Factory -7/DSF -6/Factory -6/Garrison -5/Factory -5/Garrison (discovered 2 exits: *Fac x2) -4/Factory -4/Upper Caves -4/Upper Caves (discovered 1 exit: [*Res]) History --------- Turn | Location | Event 32 | -11/Scrapyard | Discovered new exit (range 15) 73 | -11/Scrapyard | Entered Materials 141 | -10/Materials | Identified exit to Mines 182 | -10/Materials | Discovered new exit (range 13) 182 | -10/Materials | Identified exit to Materials 217 | -10/Materials | Entered another Materials area 217 | -9/Materials | Evolved 2 slots: Propulsion x1, Utility x1 306 | -9/Materials | Build established: Mutant 492 | -9/Materials | Discovered new exit (range 13) 655 | -9/Materials | Entered another Materials area 655 | -8/Materials | Evolved 2 slots: Propulsion x1, Utility x1 797 | -8/Materials | Discovered new exit (range 9) 955 | -8/Materials | Build established: Hacker-Mutant 1073 | -8/Materials | Discovered new exit (range 13) 1185 | -8/Materials | Garrison activated, responded to threat 1293 | -8/Materials | Garrison activated, responded to threat 1374 | -8/Materials | Discovered new exit (range 15) 1385 | -8/Materials | Identified exit to Garrison 1392 | -8/Materials | Build established: Scavenger-Mutant 1392 | -8/Materials | Entered Garrison 1408 | -8/Garrison | Triggered checkpoint 1503 | -8/Garrison | Lost 7 parts (1p1n2u3w) 1656 | -8/Garrison | Triggered checkpoint 1751 | -8/Garrison | Discovered new exit (range 8) 1814 | -8/Garrison | Triggered checkpoint 1866 | -8/Garrison | Lost 3 parts (1p2n) 1992 | -8/Garrison | Triggered checkpoint 2055 | -8/Garrison | Lost 3 parts (2n1w) 2148 | -8/Garrison | Triggered checkpoint 2256 | -8/Garrison | Discovered new exit (range 10) 2312 | -8/Garrison | Triggered checkpoint 2339 | -8/Garrison | Core integrity fell below 50% 2676 | -8/Garrison | Discovered new exit (range 9) 2732 | -8/Garrison | Triggered checkpoint 2876 | -8/Garrison | Installed Relay Interface Framework 2958 | -8/Garrison | Garrison Relay disabled 3191 | -8/Garrison | Garrison Relay disabled 3389 | -8/Garrison | Entered Storage 3447 | -8/Storage | Assisted by bots powering up and referring to "LRC-V3" 3786 | -8/Storage | Build established: Bothacker-Mutant 3880 | -8/Storage | Discovered new exit (range 16) 3955 | -8/Storage | Identified exit to Garrison 3963 | -8/Storage | Entered Garrison 3963 | -8/Garrison | Accompanied by 10 allies 3983 | -8/Garrison | Triggered checkpoint 3987 | -8/Garrison | Triggered checkpoint 4015 | -8/Garrison | Triggered checkpoint 4146 | -8/Garrison | Expanded RIF knowledge: Program Shield 4417 | -8/Garrison | Triggered checkpoint 4419 | -8/Garrison | Triggered checkpoint 4424 | -8/Garrison | Triggered checkpoint 4459 | -8/Garrison | Lost 8 allies 4463 | -8/Garrison | Triggered checkpoint 4521 | -8/Garrison | Triggered checkpoint 4543 | -8/Garrison | Garrison Relay disabled 4556 | -8/Garrison | Lost 3 allies 4587 | -8/Garrison | Discovered new exit (range 8) 4688 | -8/Garrison | Entered Factory 4688 | -7/Factory | Accompanied by 9 allies 4688 | -7/Factory | Evolved 2 slots: Utility x2 4946 | -7/Factory | Repaired Remote Datajack 5112 | -7/Factory | Lost 8 allies 5268 | -7/Factory | Lost 5 allies 5316 | -7/Factory | Sucked down chute 5316 | -7/Factory | Entered Waste 5316 | -7/Waste | The area was eerily silent 5336 | -7/Waste | 3 allies followed down the chute 5558 | -7/Waste | Discovered new exit (range 15) 5826 | -7/Waste | A Compactor rumbled back to life 5829 | -7/Waste | Spotted C-40 Crusher 5835 | -7/Waste | Allies destroyed C-40 Crusher 6110 | -7/Waste | Entered Factory 6110 | -7/Factory | Accompanied by 2 allies 6262 | -7/Factory | Identified exit to Garrison 6262 | -7/Factory | Entered Garrison 6262 | -7/Garrison | Accompanied by 2 allies 6296 | -7/Garrison | Expanded RIF knowledge: Hotswap 6328 | -7/Garrison | Garrison Relay disabled 6484 | -7/Garrison | Triggered checkpoint 6494 | -7/Garrison | Triggered checkpoint 6526 | -7/Garrison | Lost 3 allies 6596 | -7/Garrison | Discovered new exit (range 10) 6630 | -7/Garrison | Triggered checkpoint 6660 | -7/Garrison | Garrison Relay disabled 6727 | -7/Garrison | Entered Factory 6727 | -7/Factory | Accompanied by 2 allies 6743 | -7/Factory | Identified exit to DSF 6743 | -7/Factory | Entered DSF 6743 | -7/DSF | Accompanied by 2 allies 6792 | -7/DSF | Additional patrols routed to DSF 6862 | -7/DSF | Discovered new exit (range 16) 6902 | -7/DSF | Entered Factory 6902 | -6/Factory | Accompanied by 1 ally 6902 | -6/Factory | Evolved 2 slots: Utility x2 7902 | -6/Factory | Identified exit to Garrison 7902 | -6/Factory | Entered Garrison 7902 | -6/Garrison | Accompanied by 2 allies 7945 | -6/Garrison | Spotted B-75 Beast 7959 | -6/Garrison | Triggered checkpoint 8019 | -6/Garrison | Lost 3 allies 8022 | -6/Garrison | Destroyed B-75 Beast 8113 | -6/Garrison | Expanded RIF knowledge: Structural Interface 8175 | -6/Garrison | Discovered new exit (range 11) 8247 | -6/Garrison | Entered Factory 8247 | -5/Factory | Evolved 2 slots: Utility x2 8414 | -5/Factory | Build established: Botlord-Mutant 8727 | -5/Factory | Build established: Bothacker-Mutant 8837 | -5/Factory | Identified exit to Garrison 8842 | -5/Factory | Entered Garrison 8865 | -5/Garrison | Triggered checkpoint 8924 | -5/Garrison | Rescued a captive Derelict 8934 | -5/Garrison | Rescued a captive Derelict 8964 | -5/Garrison | Garrison Relay disabled 9036 | -5/Garrison | Spotted Executioner 9036 | -5/Garrison | Spotted Executioner 9047 | -5/Garrison | Destroyed Executioner 9054 | -5/Garrison | Destroyed Executioner 9057 | -5/Garrison | Found Prototype Processor 9057 | -5/Garrison | Identified Exp. Targeting Computer 9272 | -5/Garrison | Build established: Botlord-Mutant 9296 | -5/Garrison | Triggered checkpoint 9296 | -5/Garrison | Spotted B-75 Beast 9350 | -5/Garrison | Destroyed 10 combat bots 9355 | -5/Garrison | Destroyed B-75 Beast 9385 | -5/Garrison | Lost 5 parts (4n1u) 9438 | -5/Garrison | Triggered checkpoint 9532 | -5/Garrison | Garrison Relay disabled 9568 | -5/Garrison | Discovered new exit (range 8) 9694 | -5/Garrison | Expanded RIF knowledge: Coupler Efficiency 9705 | -5/Garrison | Discovered new exit (range 13) 9774 | -5/Garrison | Triggered checkpoint 9827 | -5/Garrison | System corruption reached 10% 9903 | -5/Garrison | Expanded RIF knowledge: Threat Obfuscation 9973 | -5/Garrison | Garrison Relay disabled 9989 | -5/Garrison | Found embedded Infiltrators 10079 | -5/Garrison | Entered Factory 10079 | -4/Factory | Accompanied by 2 allies 10079 | -4/Factory | Evolved 2 slots: Utility x2 10435 | -4/Factory | Found Prototype Processor 10435 | -4/Factory | Identified Exp. Melee Analysis Suite 10615 | -4/Factory | Lost 11 parts (1p4n4u2w) 10722 | -4/Factory | Found Prototype Device 10722 | -4/Factory | Identified Active Sensor Suite 10908 | -4/Factory | Spotted B-86 Titan 10926 | -4/Factory | Assimilated Titan 7a with formatsys_high 11011 | -4/Factory | Build established: Botlord-Skirmisher 11192 | -4/Factory | Garrison activated, responded to threat 11192 | -4/Factory | Discovered new exit (range 16) 11273 | -4/Factory | Cargo convoy interrupted 11280 | -4/Factory | Entered Upper Caves 11323 | -4/Upper Caves | Lost 3 parts (1n1u1w) 11494 | -4/Upper Caves | Build established: Botlord-Mutant 12002 | -4/Upper Caves | Spotted B-86 Titan 12061 | -4/Upper Caves | Destroyed B-86 Titan 12273 | -4/Upper Caves | Lost 5 parts (1p2n2u) 12547 | -4/Upper Caves | Learned 8 Research zone layouts 12771 | -4/Upper Caves | Attracted the attention of an 0b10 outpost 12822 | -4/Upper Caves | Lost 5 parts (2n3u) 13369 | -4/Upper Caves | Attracted the attention of an 0b10 checkpoint 13405 | -4/Upper Caves | Lost 3 allies 13429 | -4/Upper Caves | Discovered new exit (range 5) 13441 | -4/Upper Caves | Entered another Upper Caves area 13441 | -4/Upper Caves | Accompanied by 1 ally 13503 | -4/Upper Caves | Discovered new exit (range 15) 13552 | -4/Upper Caves | Attracted the attention of an 0b10 outpost 13573 | -4/Upper Caves | System corruption reached 10% 13593 | -4/Upper Caves | Core integrity fell below 50% 13641 | -4/Upper Caves | Core integrity fell below 20% 13655 | -4/Upper Caves | Destroyed by Y-72 Warden with Quantum Rifle Last Messages --------------- disabled. Slammed into G-67 Veteran. Relay Coupler [Demolisher] destroyed. Slammed into G-67 Veteran. MTPWG19WZYMG 56HUG7#:Y| BOWJ Slammed into G-67 Veteran. Destabilizing: System interference. Adv. Coolant Injector temporarily disabled. Adv. Coolant Injector destroyed. Slammed into G-67 Veteran. Adv. Visual Processing Unit broken. Destabilizing: Short circuit. Slammed into G-67 Veteran. M-36 Artificer repairs Y-72 Warden. Broken Adv. Visual Processing Unit destroyed. Slammed into G-67 Veteran. Relay Coupler [Cutter] destroyed. Slammed into G-67 Veteran. Relay Coupler [Hunter] destroyed. Slammed into G-67 Veteran. Map ----- +----------------------------------------------------+ | ?????????????????????????????????????????????????? | | ?????????????????????????????????????????????????? | | ????????????#????????????????????????????????????? | | ???????????## ########??????############????????? | | ???????# # ####### #####????? | | ??????# #????? | | ???? #??? #????? | | ???? ###?# #????? | | ????????## #?# #????? | | ?????????## ## ### ### #????? | | ??????????????# ????#### #????? | | ?????????????????????#### #????? | | ??????????????????### #?### ###### ##????? | | ?????????????????## #???####### ##?????? | | ???????????????#?# ########## #??????? | | ???????????????# # # #??????? | | ????????????????#"" #"" ### ## #??????? | | ?????????????????#""!" # #?## #??????? | | ??????????????#### # " % "# #?## #??????? | | ??????????????# " ! " # #?# ##??????? | | ??????????????###### ! %"" # ### #???????? | | ????????????????# " "% % # ## ###?????? | | ????????????????####%# " "# ##????? | | ???????????????????#%######## #????? | | ???????????????????#%g%%%%% #????? | | ??????????????#????##%mgg@% ## #????? | | ?????????????## ???# %Y g% #### #????? | | ????????????## ##% #??## #????? | | ????????????# < #???# #????? | | ???????????# ### ###???# #????? | | ??????? ??????# ##?????? #####????? | | ??????#???????????# ### #??????? ##????????? | | ??????????????????# ##?## #??????##?????????? | | ??????????????????## ##???## ????????????????? | | ???????????????????# #?????? ??????????????? | | ???????????????????# #?????? #?????????????? | | ???????????????????## ?????? ##?????????????? | | ????????????????????# ?????? #??????????????? | | ????????????????????## ????? ##??????????????? | | ?????????????????????####?????####???????????????? | | ?????????????????????????????????????????????????? | | ?????????????????????????????????????????????????? | | ?????????????????????????????????????????????????? | | ?????????????????????????????????????????????????? | | ?????????????????????????????????????????????????? | | ?????????????????????????????????????????????????? | | ?????????????????????????????????????????????????? | | ?????????????????????????????????????????????????? | | ?????????????????????????????????????????????????? | | ?????????????????????????????????????????????????? | +----------------------------------------------------+ Best States ------------- Heat Dissipation 93 Coolant Potential 100 Energy Generation 25 Energy Capacity 325 Matter Stores 350 Matter Capacity 350 Sight Range 20 Robot Scan Range 20 Terrain Scan Density 10 ECM Strength 1 Power Amplification 30 Base Temperature (-) 150 EM Shielding 3 Armor Coverage 450 Resistance: KI 20 Resistance: TH 50 Resistance: EX 20 Resistance: EM 20 Resistance: I 20 Resistance: S 20 Resistance: P 20 Core Shielding 20 Point Defense Rating 80 Evasion (%) 55 Targeting Accuracy 12 Recoil Reduction 4 Salvage Targeting 1 Offensive Hacking 22 Defensive Hacking 22 Relay Coupler Types 4 Relay Coupler Value 141 Item Schematics ----------------- Remote Datajack | -5/Factory | Scanalyzed System Restoration Module | -5/Factory | Scanalyzed Robot Schematics ------------------ None Fabricated ------------ Nothing Alien Tech Used ----------------- None Achievements -------------- Quick And Dirty Challenges ------------ None Game ------ Seed InsulationCloakingBank Manual? 0 Play Time 02:44:49 Cumulative 84.6 hours Start 2024.05.05 @ 00:09:50 End 2024.05.05 @ 03:14:44 Sessions 1 Manual Loads 0 Difficulty Adventurer Special Mode None Game No. 35 Rogue 0 Adventurer 35 Explorer 0 Win Type - Total 1 Types 1/0/0/0/0/0/0/0/0 Lore% 32 Gallery% 45 Achievement% 40 Wizard Run 0 Options --------- Layout 1 ASCII 0 Keyboard 0 Movement Mouse Keybinds 0 Fullscreen 2 Font 24/Smallcaps Map View 50x35 Zoom Use 0% Tactical HUD 0 Map Filters NONE Filters NONE Steam 1 RUN: 05996ac7-a90e-4ba0-bf01-adba0e359982